fUST/lending_fUST_20250227
["ID","MTS","AMOUNT","RATE_DAILY","PERIOD"]
[354593273,1740592250072,-874.44,0.00052054,120]
[354593274,1740592250082,-151.0,0.00052054,120]
[354593275,1740592250091,-500.0,0.00052054,120]
[354593276,1740592250100,-874.44,0.00052054,120]
[354593277,1740592250110,-151.0,0.00052054,120]
[354593278,1740592250119,-874.44,0.00052054,120]
[354593279,1740592250130,-151.0,0.00052054,120]
[354593280,1740592250139,-874.44,0.00052054,120]
[354593281,1740592250148,-500.0,0.00052054,120]
[354593282,1740592250157,-874.44,0.00052054,120]
[354593283,1740592250166,-151.0,0.00052054,120]
[354593284,1740592250175,-874.44,0.00052054,120]
[354593285,1740592250184,-151.0,0.00052054,120]
[354593286,1740592250193,-874.44,0.00052054,120]
[354593287,1740592250203,-151.0,0.00052054,120]
[354593288,1740592250212,-874.44,0.00052054,120]
[354593289,1740592250223,-500.0,0.00052054,120]
[354593290,1740592250232,-151.0,0.00052054,120]
[354593291,1740592250241,-500.0,0.00052054,120]
[354593292,1740592250251,-874.44,0.00052054,120]
[354593293,1740592250260,-151.0,0.00052054,120]
[354593294,1740592250270,-874.44,0.00052054,120]
[354593295,1740592250279,-874.44,0.00052054,120]
[354593296,1740592250288,-624.8,0.00052054,120]
[354593297,1740592250297,-874.52,0.00052054,120]
[354593298,1740592250307,-151.0,0.00052054,120]
[354593299,1740592250316,-2316.96,0.00052054,120]
[354593300,1740592250325,-151.0,0.00052054,120]
[354593301,1740592250335,-1094.45,0.00052054,120]
[354593302,1740592250346,-151.0,0.00052054,120]
[354593303,1740592250355,-33538.76,0.00052054,120]
[354593304,1740592250365,-151.0,0.00052054,120]
[354593305,1740592250374,-151.0,0.00052054,120]
[354593306,1740592250385,-500.0,0.00052054,120]
[354593307,1740592250394,-261.812864,0.00052054,120]
[354593308,1740592250404,-501.15572007,0.00052054,120]
[354593309,1740592250413,-843.63,0.00052054,120]
[354593310,1740592250422,-500.0,0.00052054,120]
[354593311,1740592250431,-2938.45,0.00052054,120]
[354593312,1740592250440,-500.0,0.00052054,120]
[354593313,1740592250449,-500.0,0.00052054,120]
[354593314,1740592250458,-500.0,0.00052054,120]
[354593315,1740592250468,-502.09379907,0.00052054,120]
[354593316,1740592250477,-500.0,0.00052054,120]
[354593317,1740592250486,-500.0,0.00052054,120]
[354593318,1740592250495,-4474.85,0.00052054,120]
[354593319,1740592250505,-500.0,0.00052054,120]
[354593320,1740592250515,-21277.31,0.00052054,120]
[354593321,1740592250524,-500.0,0.00052054,120]
[354593322,1740592250533,-500.0,0.00052054,120]
[354593323,1740592250543,-2314.44,0.00052054,120]
[354593324,1740592250553,-500.0,0.00052054,120]
[354593325,1740592250562,-4039.18,0.00052054,120]
[354593326,1740592250572,-1349.14,0.00052054,120]
[354593327,1740592250581,-572.98,0.00052054,120]
[354593328,1740592250590,-517.00634589,0.00052054,120]
[354593329,1740592250599,-44564.23,0.00052054,120]
[354593330,1740592250609,-500.0,0.00052054,120]
[354593331,1740592250618,-500.0,0.00052054,120]
[354593332,1740592250629,-500.0,0.00052054,120]
[354593333,1740592250638,-872.38,0.00052054,120]
[354593334,1740592250647,-2094.43,0.00052054,120]
[354593335,1740592250657,-569.44,0.00052054,120]
[354593336,1740592250666,-628.41,0.00052054,120]
[354593337,1740592250675,-500.0,0.00052054,120]
[354593338,1740592250684,-500.0,0.00052054,120]
[354593339,1740592250694,-4666.13,0.00052054,120]
[354593340,1740592250703,-500.0,0.00052054,120]
[354593341,1740592250712,-729.21,0.00052054,120]
[354593342,1740592250726,-315.89396143,0.00052054,120]
[354593343,1740592250735,-449.999999,0.00052054,2]
[354593344,1740592250745,-500.0,0.00052054,120]
[354593345,1740592250754,-500.0,0.00052054,120]
[354593346,1740592250763,-500.0,0.00052054,120]
[354593347,1740592250772,-587.32150287,0.00052054,120]
[354593348,1740592250781,-603.82,0.00052054,120]
[354593349,1740592250790,-1133.29,0.00052054,120]
[354593350,1740592250803,-500.0,0.00052054,120]
[354593351,1740592250812,-661.71,0.00052054,120]
[354593352,1740592250821,-500.0,0.00052054,120]
[354593353,1740592250830,-500.89298169,0.00052054,120]
[354593354,1740592250839,-500.0,0.00052054,120]
[354593355,1740592250848,-6276.0,0.00052054,120]
[354593356,1740592250857,-500.0,0.00052073,10]
[354593357,1740592250866,-500.0,0.00052073,10]
[354593358,1740592250875,-500.0,0.00052073,3]
[354593359,1740592250885,-383.55861983,0.00052073,10]
[354593360,1740592250894,-500.0,0.00052073,10]
[354593361,1740592251052,-500.0,0.00052073,10]
[354593362,1740592251062,-500.0,0.00052073,10]
[354593363,1740592251072,-500.0,0.00052073,10]
[354593364,1740592251081,-500.0,0.00052073,10]
[354593365,1740592251091,-500.0,0.00052073,10]
[354593366,1740592251100,-500.0,0.00052073,10]
[354593367,1740592251109,-500.0,0.00052073,10]
[354593368,1740592251119,-500.0,0.00052073,10]
[354593369,1740592251130,-162.50923626,0.00052073,10]
[354593370,1740592251139,-500.0,0.00052073,10]
[354593371,1740592251148,-500.0,0.00052073,10]
[354593372,1740592251157,-500.0,0.00052073,10]
[354593373,1740592251167,-500.0,0.00052073,10]
[354593374,1740592251176,-500.0,0.00052073,10]
[354593375,1740592251185,-619.2763,0.00052073,10]
[354593376,1740592251195,-500.0,0.00052073,10]
[354593377,1740592251204,-2512.93,0.000521,30]
[354593378,1740592251214,-11056.95,0.000521,30]
[354593379,1740592251223,-500.0,0.0005215,120]
[354593380,1740592251232,-500.0,0.0005215,120]
[354593381,1740592251241,-500.0,0.0005215,120]
[354593382,1740592251251,-500.0,0.0005215,120]
[354593383,1740592251260,-500.0,0.0005215,120]
[354593384,1740592251269,-500.0,0.0005215,120]
[354593385,1740592251279,-500.0,0.0005215,120]
[354593386,1740592251288,-500.0,0.0005215,120]
[354593387,1740592251297,-500.0,0.0005215,120]
[354593388,1740592251307,-500.0,0.0005215,120]
[354593389,1740592251316,-500.0,0.0005215,120]
[354593390,1740592251325,-500.0,0.0005215,120]
[354593391,1740592251335,-500.0,0.0005215,120]
[354593392,1740592251343,-500.0,0.0005215,120]
[354593393,1740592251353,-500.0,0.0005215,120]
[354593394,1740592251362,-500.0,0.0005215,120]
[354593395,1740592251371,-500.0,0.0005215,120]
[354593396,1740592251383,-500.0,0.0005215,120]
[354593397,1740592251393,-500.0,0.0005215,120]
[354593398,1740592251402,-500.0,0.0005215,120]
[354593399,1740592251411,-289.04528032,0.00052176,12]
[354593400,1740592251420,-800.0,0.00052253,30]
[354593401,1740592251429,-39748.61,0.00052301,120]
[354593402,1740592251438,-151.0,0.00052301,120]
[354593403,1740592251448,-151.0,0.00052301,30]
[354593404,1740592251457,-151.0,0.00052301,120]
[354593405,1740592251466,-16922.14232415,0.00052328,120]
[354593406,1740592251475,-87142.11441854,0.00052328,59]
[354593407,1740592251484,-500.0,0.00052328,120]
[354593408,1740592251494,-500.0,0.00052328,120]
[354593409,1740592251503,-231.12730587,0.00052328,120]
[354593410,1740592251513,-500.0,0.00052328,120]
[354593411,1740592251522,-500.0,0.00052328,120]
[354593412,1740592251531,-500.0,0.00052328,120]
[354593413,1740592251540,-501.58367414,0.00052328,120]
[354593414,1740592251549,-500.0,0.00052328,120]
[354593415,1740592251559,-500.0,0.00052328,120]
[354593416,1740592251568,-500.0,0.00052328,120]
[354593417,1740592251577,-500.0,0.00052328,120]
[354593418,1740592251586,-500.0,0.00052328,120]
[354593419,1740592251595,-500.0,0.00052328,120]
[354593420,1740592251604,-500.0,0.00052328,120]
[354593421,1740592251613,-500.0,0.00052328,120]
[354593422,1740592251623,-506.27816672,0.00052328,120]
[354593423,1740592251634,-500.0,0.00052328,120]
[354593424,1740592251643,-500.0,0.00052328,120]
[354593425,1740592251653,-546.52675003,0.00052328,120]
[354593426,1740592251662,-500.0,0.00052328,120]
[354593427,1740592251671,-500.0,0.00052328,120]
[354593428,1740592251680,-500.0,0.00052328,120]
[354593429,1740592251689,-500.0,0.00052328,120]
[354593430,1740592251698,-500.0,0.00052328,120]
[354593431,1740592251710,-500.0,0.00052328,120]
[354593432,1740592251721,-255.95974716,0.00052328,120]
[354593433,1740592251731,-500.0,0.00052328,120]
[354593434,1740592251740,-500.0,0.00052328,120]
[354593435,1740592251750,-500.0,0.00052328,120]
[354593436,1740592251759,-505.48553179,0.00052328,14]
[354593437,1740592251769,-500.0,0.00052328,120]
[354593438,1740592251778,-500.0,0.00052328,120]
[354593439,1740592251787,-500.0,0.00052328,120]
[354593440,1740592251796,-532.52365038,0.00052328,120]
[354593441,1740592251806,-2338.02,0.00052328,120]
[354593442,1740592251815,-500.0,0.00052328,120]
[354593443,1740592251824,-500.0,0.00052328,120]
[354593444,1740592251833,-500.0,0.00052328,120]
[354593445,1740592251842,-953.19,0.00052328,120]
[354593446,1740592251851,-586.65085902,0.00052328,120]
[354593447,1740592251860,-500.0,0.00052328,120]
[354593448,1740592251869,-500.0,0.00052328,120]
[354593449,1740592251878,-500.0,0.00052328,120]
[354593450,1740592251888,-845.76,0.00052328,120]
[354593451,1740592251898,-500.0,0.00052328,120]
[354593452,1740592251909,-500.0,0.00052328,120]
[354593453,1740592251919,-338.51989003,0.00052328,120]
[354593454,1740592251929,-500.0,0.00052328,120]
[354593455,1740592251938,-500.0,0.00052328,120]
[354593456,1740592251948,-1035.18,0.00052328,120]
[354593457,1740592251958,-1000.0,0.00052328,120]
[354593458,1740592251967,-500.0,0.00052328,120]
[354593459,1740592251975,-548.04628182,0.00052328,120]
[354593460,1740592251986,-500.0,0.00052328,120]
[354593461,1740592251995,-500.0,0.00052328,120]
[354593462,1740592252005,-500.0,0.00052328,120]
[354593463,1740592252014,-500.0,0.00052328,120]
[354593464,1740592252024,-1419.34,0.00052328,120]
[354593465,1740592252033,-526.88,0.00052328,120]
[354593466,1740592252042,-506.63511782,0.00052328,120]
[354593467,1740592252051,-500.0,0.00052328,120]
[354593468,1740592252060,-500.0,0.00052328,120]
[354593469,1740592252069,-505.23398746,0.00052328,120]
[354593470,1740592252078,-970.25,0.00052328,120]
[354593471,1740592252087,-500.0,0.00052328,120]
[354593472,1740592252097,-500.0,0.00052328,120]
[354593473,1740592252106,-500.0,0.00052328,120]
[354593474,1740592252116,-500.0,0.00052328,120]
[354593475,1740592252125,-500.0,0.00052328,120]
[354593476,1740592252135,-500.0,0.00052328,120]
[354593477,1740592252144,-500.0,0.00052328,120]
[354593478,1740592252153,-500.0,0.00052328,120]
[354593479,1740592252162,-202.6442219,0.00052328,120]
[354593480,1740592252172,-500.0,0.00052328,120]
[354593481,1740592252181,-510.1733964,0.00052328,120]
[354593482,1740592252191,-500.0,0.00052328,120]
[354593483,1740592252201,-505.31740897,0.00052328,28]
[354593484,1740592252210,-500.0,0.00052328,120]
[354593485,1740592252220,-500.0,0.00052328,120]
[354593486,1740592252230,-500.0,0.00052328,120]
[354593487,1740592252240,-500.0,0.00052328,120]
[354593488,1740592252249,-861.93,0.00052328,120]
[354593489,1740592252259,-500.0,0.00052328,120]
[354593490,1740592252268,-646.0,0.00052328,120]
[354593491,1740592252278,-500.0,0.00052328,120]
[354593492,1740592252287,-500.0,0.00052328,120]
[354593493,1740592252296,-500.0,0.00052328,120]
[354593494,1740592252305,-500.0,0.00052328,120]
[354593495,1740592252315,-205.95320781,0.00052328,120]
[354593496,1740592252324,-2275.2,0.00052328,120]
[354593497,1740592252333,-500.0,0.00052328,120]
[354593498,1740592252342,-500.0,0.00052328,120]
[354593499,1740592252352,-500.0,0.00052328,120]
[354593500,1740592252361,-676.59,0.00052328,120]
[354593501,1740592252371,-500.0,0.00052328,120]
[354593502,1740592252383,-300.0,0.00052328,120]
[354593503,1740592252393,-500.0,0.00052328,120]
[354593504,1740592252402,-500.0,0.00052328,120]
[354593505,1740592252412,-934.4,0.00052328,120]
[354593506,1740592252421,-500.0,0.00052328,120]
[354593507,1740592252430,-500.0,0.00052328,120]
[354593508,1740592252440,-500.0,0.00052328,120]
[354593509,1740592252449,-500.0,0.00052328,120]
[354593510,1740592252458,-1335.76,0.00052328,120]
[354593511,1740592252467,-571.95,0.00052328,120]
[354593512,1740592252476,-500.0,0.00052328,120]
[354593513,1740592252486,-500.0,0.00052328,120]
[354593514,1740592252495,-500.0,0.00052328,120]
[354593515,1740592252505,-500.0,0.00052328,120]
[354593516,1740592252514,-500.0,0.00052328,120]
[354593517,1740592252524,-413.73417559,0.00052328,120]
[354593518,1740592252533,-218.78148447,0.00052328,120]
[354593519,1740592252542,-1034.73,0.00052328,120]
[354593520,1740592252551,-628.32,0.00052328,120]
[354593521,1740592252560,-500.0,0.00052328,120]
[354593522,1740592252570,-500.0,0.00052328,120]
[354593523,1740592252579,-500.0,0.00052328,120]
[354593524,1740592252588,-535.78,0.00052328,120]
[354593525,1740592252597,-500.0,0.00052328,120]
[354593526,1740592252606,-500.0,0.00052328,120]
[354593527,1740592252615,-502.7522333,0.00052328,120]
[354593528,1740592252625,-500.0,0.00052328,120]
[354593529,1740592252636,-500.0,0.00052328,120]
[354593530,1740592252645,-500.0,0.00052328,120]
[354593531,1740592252654,-500.0,0.00052328,120]
[354593532,1740592252663,-500.0,0.00052328,120]
[354593533,1740592252673,-500.0,0.00052328,120]
[354593534,1740592252682,-500.0,0.00052328,120]
[354593535,1740592252691,-500.0,0.00052328,120]
[354593536,1740592252701,-500.0,0.00052328,120]
[354593537,1740592252711,-1819.31,0.00052328,120]
[354593538,1740592252725,-1168.75,0.00052328,120]
[354593539,1740592252734,-559.94,0.00052328,120]
[354593540,1740592252743,-500.0,0.00052328,120]
[354593541,1740592252753,-500.0,0.00052328,120]
[354593542,1740592252765,-500.0,0.00052328,120]
[354593543,1740592252774,-500.0,0.00052328,120]
[354593544,1740592252783,-787.63,0.00052328,14]
[354593545,1740592252794,-500.0,0.00052328,120]
[354593546,1740592252803,-500.0,0.00052328,120]
[354593547,1740592252812,-500.0,0.00052328,120]
[354593548,1740592252821,-500.0,0.00052328,120]
[354593549,1740592252830,-617.27,0.00052328,120]
[354593550,1740592252839,-1930.95,0.00052328,120]
[354593551,1740592252848,-500.0,0.00052328,120]
[354593552,1740592252857,-500.0,0.00052328,120]
[354593553,1740592252866,-500.0,0.00052328,120]
[354593554,1740592252875,-500.83507592,0.00052328,120]
[354593555,1740592252885,-500.0,0.00052328,120]
[354593556,1740592252894,-500.0,0.00052328,120]
[354593557,1740592252903,-500.0,0.00052328,120]
[354593558,1740592252912,-500.0,0.00052328,120]
[354593559,1740592252922,-502.43269872,0.00052328,120]
[354593560,1740592252931,-500.0,0.00052328,120]
[354593561,1740592252940,-680.42,0.00052328,120]
[354593562,1740592252949,-500.0,0.00052328,120]
[354593563,1740592252959,-926.41,0.00052328,120]
[354593564,1740592252968,-500.0,0.00052328,120]
[354593565,1740592252977,-1071.92,0.00052328,120]
[354593566,1740592252986,-500.0,0.00052328,120]
[354593567,1740592252995,-1016.9,0.00052328,120]
[354593568,1740592253004,-631.33360392,0.00052328,120]
[354593569,1740592253015,-728.58,0.00052328,120]
[354593570,1740592253025,-878.87,0.00052328,120]
[354593571,1740592253034,-500.0,0.00052328,120]
[354593572,1740592253046,-500.0,0.00052328,120]
[354593573,1740592253056,-1000.0,0.00052328,20]
[354593574,1740592253067,-502.77418015,0.00052328,120]
[354593575,1740592253077,-500.0,0.00052328,120]
[354593576,1740592253088,-500.0,0.00052328,120]
[354593577,1740592253097,-500.0,0.00052328,120]
[354593578,1740592253106,-500.0,0.00052328,120]
[354593579,1740592253115,-500.0,0.00052328,120]
[354593580,1740592253124,-1108.61,0.00052328,120]
[354593581,1740592253134,-3000.0,0.00052328,120]
[354593582,1740592253143,-627.58,0.00052328,120]
[354593583,1740592253153,-500.0,0.00052328,120]
[354593584,1740592253162,-500.0,0.00052328,120]
[354593585,1740592253171,-545.46,0.00052328,120]
[354593586,1740592253180,-500.0,0.00052328,120]
[354593587,1740592253189,-504.37632929,0.00052328,120]
[354593588,1740592253198,-500.0,0.00052328,120]
[354593589,1740592253207,-500.0,0.00052328,120]
[354593590,1740592253216,-500.0,0.00052328,120]
[354593591,1740592253226,-500.0,0.00052328,120]
[354593592,1740592253236,-812.48,0.00052328,120]
[354593593,1740592253245,-1000.0,0.00052328,120]
[354593594,1740592253254,-670.5,0.00052328,120]
[354593595,1740592253264,-1753.67,0.00052328,120]
[354593596,1740592253273,-838.68,0.00052328,120]
[354593597,1740592253282,-727.89,0.00052328,120]
[354593598,1740592253292,-760.69,0.00052328,120]
[354593599,1740592253301,-738.35,0.00052328,120]
[354593600,1740592253311,-1244.73,0.00052328,120]
[354593601,1740592253321,-500.0,0.00052328,120]
[354593602,1740592253330,-1252.76,0.00052328,120]
[354593603,1740592253339,-500.0,0.00052328,10]
[354593604,1740592253349,-673.0,0.00052328,120]
[354593605,1740592253358,-500.0,0.00052328,120]
[354593606,1740592253367,-2043.16,0.00052328,120]
[354593607,1740592253378,-500.0,0.00052328,120]
[354593608,1740592253387,-727.14,0.00052328,120]
[354593609,1740592253396,-500.0,0.00052328,30]
[354593610,1740592253406,-500.0,0.00052328,120]
[354593611,1740592253416,-500.0,0.00052328,120]
[354593612,1740592253426,-2417.86,0.00052328,120]
[354593613,1740592253435,-500.0,0.00052328,120]
[354593614,1740592253444,-500.0,0.00052328,120]
[354593615,1740592253453,-500.0,0.00052328,120]
[354593616,1740592253463,-500.0,0.00052328,120]
[354593617,1740592253472,-500.0,0.00052328,120]
[354593618,1740592253481,-500.0,0.00052328,120]
[354593619,1740592253491,-250.0,0.00052328,120]
[354593620,1740592253500,-500.0,0.00052328,120]
[354593621,1740592253509,-500.0,0.00052328,120]
[354593622,1740592253518,-537.56,0.00052328,120]
[354593623,1740592253528,-1231.8,0.00052328,120]
[354593624,1740592253537,-500.0,0.00052328,120]
[354593625,1740592253546,-933.54,0.00052328,120]
[354593626,1740592253555,-599.12,0.00052328,120]
[354593627,1740592253566,-959.58,0.00052328,120]
[354593628,1740592253575,-1368.68,0.00052328,120]
[354593629,1740592253585,-500.0,0.00052328,120]
[354593630,1740592253595,-500.0,0.00052328,120]
[354593631,1740592253604,-740.12,0.00052328,120]
[354593632,1740592253613,-500.0,0.00052328,120]
[354593633,1740592253622,-500.0,0.00052328,120]
[354593634,1740592253632,-1545.2,0.00052328,120]
[354593635,1740592253641,-500.0,0.00052328,120]
[354593636,1740592253650,-500.0,0.00052328,120]
[354593637,1740592253659,-500.0,0.00052328,120]
[354593638,1740592253670,-500.0,0.00052328,120]
[354593639,1740592253678,-1017.84,0.00052328,120]
[354593640,1740592253687,-500.0,0.00052328,120]
[354593641,1740592253696,-653.16,0.00052328,120]
[354593642,1740592253706,-500.0,0.00052328,120]
[354593643,1740592253720,-500.0,0.00052328,120]
[354593644,1740592253731,-500.0,0.00052328,120]
[354593645,1740592253741,-500.0,0.00052328,120]
[354593646,1740592253751,-500.0,0.00052328,120]
[354593647,1740592253760,-500.0,0.00052328,120]
[354593648,1740592253769,-1281.08,0.00052328,120]
[354593649,1740592253778,-500.0,0.00052328,120]
[354593650,1740592253788,-500.0,0.00052328,120]
[354593651,1740592253798,-3084.24,0.00052328,120]
[354593652,1740592253807,-832.69,0.00052328,120]
[354593653,1740592253816,-501.9525554,0.00052328,120]
[354593654,1740592253825,-500.0,0.00052328,120]
[354593655,1740592253834,-500.0,0.00052328,120]
[354593656,1740592253843,-500.0,0.00052328,120]
[354593657,1740592253852,-500.0,0.00052328,120]
[354593658,1740592253862,-761.03,0.00052328,120]
[354593659,1740592253871,-500.0,0.00052328,120]
[354593660,1740592253881,-647.14,0.00052328,120]
[354593661,1740592253890,-500.0,0.00052328,120]
[354593662,1740592253900,-794.45,0.00052328,120]
[354593663,1740592253909,-500.0,0.00052328,120]
[354593664,1740592253918,-500.0,0.00052328,120]
[354593665,1740592253928,-4410.88,0.00052328,120]
[354593666,1740592253937,-500.0,0.00052328,120]
[354593667,1740592253946,-500.0,0.00052328,120]
[354593668,1740592254096,-500.0,0.00052328,120]
[354593669,1740592254107,-565.54,0.00052328,120]
[354593670,1740592254117,-1955.8,0.00052328,120]
[354593671,1740592254127,-500.0,0.00052328,120]
[354593672,1740592254136,-500.0,0.00052328,120]
[354593673,1740592254145,-500.0,0.00052328,120]
[354593674,1740592254155,-500.0,0.00052328,120]
[354593675,1740592254164,-981.77,0.00052328,120]
[354593676,1740592254174,-624.23,0.00052328,120]
[354593677,1740592254183,-500.0,0.00052328,120]
[354593678,1740592254193,-389.95259309,0.00052328,120]
[354593679,1740592254202,-1009.88,0.00052328,120]
[354593680,1740592254211,-500.0,0.00052328,120]
[354593681,1740592254221,-500.0,0.00052328,120]
[354593682,1740592254230,-372.95297593,0.00052328,120]
[354593683,1740592254239,-500.0,0.00052328,120]
[354593684,1740592254250,-500.0,0.00052328,120]
[354593685,1740592254260,-500.0,0.00052328,120]
[354593686,1740592254269,-500.0,0.00052328,120]
[354593687,1740592254278,-2579.14,0.00052328,120]
[354593688,1740592254288,-500.0,0.00052328,120]
[354593689,1740592254297,-500.0,0.00052328,120]
[354593690,1740592254307,-500.0,0.00052328,120]
[354593691,1740592254316,-1044.27,0.00052328,120]
[354593692,1740592254325,-500.0,0.00052328,120]
[354593693,1740592254334,-501.93107791,0.00052328,120]
[354593694,1740592254344,-500.0,0.00052328,120]
[354593695,1740592254353,-500.0,0.00052328,120]
[354593696,1740592254362,-500.0,0.00052328,120]
[354593697,1740592254371,-500.0,0.00052328,120]
[354593698,1740592254382,-583.37,0.00052328,120]
[354593699,1740592254391,-500.0,0.00052328,120]
[354593700,1740592254400,-929.22,0.00052328,120]
[354593701,1740592254409,-886.52,0.00052328,120]
[354593702,1740592254419,-500.0,0.00052328,120]
[354593703,1740592254429,-500.0,0.00052328,120]
[354593704,1740592254438,-1352.04,0.00052328,120]
[354593705,1740592254447,-500.0,0.00052328,120]
[354593706,1740592254456,-500.0,0.00052328,120]
[354593707,1740592254465,-492.70444578,0.00052328,120]
[354593708,1740592254475,-500.0,0.00052328,120]
[354593709,1740592254484,-500.0,0.00052328,120]
[354593710,1740592254494,-500.0,0.00052328,120]
[354593711,1740592254504,-1987.42,0.00052328,120]
[354593712,1740592254513,-500.0,0.00052328,120]
[354593713,1740592254522,-500.0,0.00052328,120]
[354593714,1740592254531,-500.0,0.00052328,120]
[354593715,1740592254540,-506.44,0.00052328,120]
[354593716,1740592254549,-1837.28,0.00052328,120]
[354593717,1740592254559,-500.0,0.00052328,120]
[354593718,1740592254568,-500.0,0.00052328,120]
[354593719,1740592254578,-891.29,0.00052328,120]
[354593720,1740592254587,-500.0,0.00052328,120]
[354593721,1740592254596,-674.1,0.00052328,120]
[354593722,1740592254605,-853.51,0.00052328,120]
[354593723,1740592254614,-500.0,0.00052328,120]
[354593724,1740592254624,-500.0,0.00052328,120]
[354593725,1740592254635,-776.72,0.00052328,120]
[354593726,1740592254644,-500.0,0.00052328,120]
[354593727,1740592254653,-500.0,0.00052328,120]
[354593728,1740592254662,-500.0,0.00052328,120]
[354593729,1740592254671,-1445.3,0.00052328,120]
[354593730,1740592254680,-500.0,0.00052328,120]
[354593731,1740592254689,-4057.5,0.00052328,120]
[354593732,1740592254698,-500.0,0.00052328,120]
[354593733,1740592254707,-599.35,0.00052328,15]
[354593734,1740592254718,-1000.0,0.00052328,30]
[354593735,1740592254727,-500.0,0.00052328,120]
[354593736,1740592254736,-505.04014969,0.00052328,120]
[354593737,1740592254746,-500.0,0.00052328,120]
[354593738,1740592254756,-500.0,0.00052328,45]
[354593739,1740592254766,-3342.15,0.00052328,120]
[354593740,1740592254775,-271.23331169,0.00052328,120]
[354593741,1740592254784,-1321.26,0.00052328,120]
[354593742,1740592254797,-500.0,0.00052328,120]
[354593743,1740592254807,-500.0,0.00052328,120]
[354593744,1740592254817,-507.80281655,0.00052328,120]
[354593745,1740592254827,-500.0,0.00052328,120]
[354593746,1740592254838,-2178.37,0.00052328,120]
[354593747,1740592254848,-500.0,0.00052328,120]
[354593748,1740592254858,-520.29,0.00052328,120]
[354593749,1740592254867,-707.37,0.00052328,120]
[354593750,1740592254876,-1916.95,0.00052328,120]
[354593751,1740592254886,-500.0,0.00052328,120]
[354593752,1740592254895,-500.0,0.00052328,120]
[354593753,1740592254904,-500.0,0.00052328,120]
[354593754,1740592254913,-500.0,0.00052328,120]
[354593755,1740592254923,-500.0,0.00052328,120]
[354593756,1740592254931,-1532.43,0.00052328,120]
[354593757,1740592254941,-500.0,0.00052328,120]
[354593758,1740592254950,-1517.79,0.00052328,120]
[354593759,1740592254959,-726.52,0.00052328,30]
[354593760,1740592254967,-538.6,0.00052328,120]
[354593761,1740592254976,-500.0,0.00052328,120]
[354593762,1740592254985,-523.40440468,0.00052328,120]
[354593763,1740592254994,-606.25807251,0.00052328,120]
[354593764,1740592255004,-500.0,0.00052328,120]
[354593765,1740592255013,-500.0,0.00052328,120]
[354593766,1740592255023,-500.0,0.00052328,30]
[354593767,1740592255032,-500.0,0.00052328,120]
[354593768,1740592255041,-500.0,0.00052328,120]
[354593769,1740592255050,-500.0,0.00052328,120]
[354593770,1740592255059,-704.9,0.00052328,120]
[354593771,1740592255069,-500.0,0.00052328,120]
[354593772,1740592255078,-500.0,0.00052328,120]